[Event "November 21 Late 2023"]
[Site "https://www.chess.com"]
[Date "2023.11.21"]
[Round "11"]
[White "Horak, Martin"]
[Black "Padalka, Artem"]
[Result "1-0"]
[Board "61"]
[TimeControl "180+1"]
[WhiteFideId "367095"]
[BlackFideId "14118637"]
[WhiteElo "2091"]
[BlackElo "2056"]
[WhiteTeam "CZE"]
[BlackTeam "POL"]
[WhiteClock "0:00:12"]
[BlackClock "0:00:06"]

1. e4 {[%clk 0:03:00]}  c5 {[%clk 0:02:55]} 2. Nf3 {[%clk 0:03:00]}  d6 {[%clk 0:02:55]} 3. d4 {[%clk 0:02:59]}  cxd4 {[%clk 0:02:56]} 4. Nxd4 {[%clk 0:03:00]}  Nf6 {[%clk 0:02:57]} 5. Nc3 {[%clk 0:02:59]}  g6 {[%clk 0:02:57]} 6. f3 {[%clk 0:02:29]}  Bg7 {[%clk 0:02:57]} 7. Be3 {[%clk 0:02:30]}  Nc6 {[%clk 0:02:57]} 8. Qd2 {[%clk 0:02:25]}  O-O {[%clk 0:02:57]} 9. g4 {[%clk 0:02:24]}  Be6 {[%clk 0:02:56]} 10. h4 {[%clk 0:02:22]}  h5 {[%clk 0:02:45]} 11. g5 {[%clk 0:02:14]}  Nd7 {[%clk 0:02:45]} 12. f4 {[%clk 0:02:13]}  Bg4 {[%clk 0:02:34]} 13. Bh3 {[%clk 0:01:51]}  Nxd4 {[%clk 0:02:22]} 14. Bxd4 {[%clk 0:01:48]}  Bxd4 {[%clk 0:02:21]} 15. Qxd4 {[%clk 0:01:48]}  Bxh3 {[%clk 0:01:50]} 16. Rxh3 {[%clk 0:01:49]}  Qb6 {[%clk 0:01:51]} 17. O-O-O {[%clk 0:01:46]}  Qxd4 {[%clk 0:01:50]} 18. Rxd4 {[%clk 0:01:47]}  Nc5 {[%clk 0:01:47]} 19. Nd5 {[%clk 0:01:42]}  Rae8 {[%clk 0:01:40]} 20. f5 {[%clk 0:01:37]}  Nd7 {[%clk 0:01:30]} 21. Rc3 {[%clk 0:01:32]}  e6 {[%clk 0:01:14]} 22. Nf4 {[%clk 0:01:23]}  e5 {[%clk 0:01:05]} 23. Rxd6 {[%clk 0:01:23]}  exf4 {[%clk 0:01:05]} 24. Rxd7 {[%clk 0:01:23]}  Rxe4 {[%clk 0:01:05]} 25. fxg6 {[%clk 0:01:11]}  Re1+ {[%clk 0:01:00]} 26. Kd2 {[%clk 0:01:11]}  Rh1 {[%clk 0:01:00]} 27. Rcc7 {[%clk 0:00:43]}  Rxh4 {[%clk 0:00:51]} 28. Rxf7 {[%clk 0:00:43]}  Rxf7 {[%clk 0:00:49]} 29. Rxf7 {[%clk 0:00:44]}  Rg4 {[%clk 0:00:45]} 30. Ke2 {[%clk 0:00:24]}  Rxg5 {[%clk 0:00:35]} 31. Kf3 {[%clk 0:00:25]}  Rxg6 {[%clk 0:00:34]} 32. Rxb7 {[%clk 0:00:23]}  h4 {[%clk 0:00:24]} 33. Rb5 {[%clk 0:00:20]}  Rh6 {[%clk 0:00:19]} 34. Kg2 {[%clk 0:00:15]}  h3+ {[%clk 0:00:19]} 35. Kh2 {[%clk 0:00:15]}  Kg7 {[%clk 0:00:17]} 36. Rf5 {[%clk 0:00:14]}  Rh4 {[%clk 0:00:17]} 37. c4 {[%clk 0:00:13]}  Kg6 {[%clk 0:00:17]} 38. Rf8 {[%clk 0:00:14]}  Kg5 {[%clk 0:00:16]} 39. c5 {[%clk 0:00:13]}  Rh6 {[%clk 0:00:16]} 40. Rg8+ {[%clk 0:00:12]}  Kf5 {[%clk 0:00:17]} 41. Rf8+ {[%clk 0:00:12]}  Ke4 {[%clk 0:00:17]} 42. Re8+ {[%clk 0:00:13]}  Kf3 {[%clk 0:00:17]} 43. b4 {[%clk 0:00:13]}  Rg6 {[%clk 0:00:14]} 44. Re5 {[%clk 0:00:09]}  Rg2+ {[%clk 0:00:14]} 45. Kxh3 {[%clk 0:00:09]}  Rxa2 {[%clk 0:00:12]} 46. Kh4 {[%clk 0:00:09]}  Rb2 {[%clk 0:00:12]} 47. c6 {[%clk 0:00:08]}  Rxb4 {[%clk 0:00:11]} 48. Rc5 {[%clk 0:00:09]}  Rb1 {[%clk 0:00:11]} 49. c7 {[%clk 0:00:09]}  Rh1+ {[%clk 0:00:11]} 50. Kg5 {[%clk 0:00:10]}  Rg1+ {[%clk 0:00:11]} 51. Kf5 {[%clk 0:00:10]}  Rg8 {[%clk 0:00:08]} 52. c8=Q {[%clk 0:00:11]}  Rxc8 {[%clk 0:00:08]} 53. Rxc8 {[%clk 0:00:12]}  a5 {[%clk 0:00:09]} 54. Rc3+ {[%clk 0:00:11]}  Ke2 {[%clk 0:00:08]} 55. Kxf4 {[%clk 0:00:11]}  Kd2 {[%clk 0:00:08]} 56. Ra3 {[%clk 0:00:12]}  Kc2 {[%clk 0:00:06]} 57. Rxa5 {[%clk 0:00:12]} 1-0

[Event "November 21 Late 2023"]
[Site "https://www.chess.com"]
[Date "2023.11.21"]
[Round "11"]
[White "Yushko, Olga"]
[Black "Rangel, Daniel"]
[Result "0-1"]
[Board "63"]
[TimeControl "180+1"]
[WhiteFideId "14114500"]
[BlackFideId "2124475"]
[WhiteElo "2028"]
[BlackElo "2267"]
[WhiteTeam "UKR"]
[BlackTeam "BRA"]
[WhiteClock "0:00:02"]
[BlackClock "0:01:19"]

1. d4 {[%clk 0:02:56]}  Nf6 {[%clk 0:02:59]} 2. c4 {[%clk 0:02:55]}  g6 {[%clk 0:03:00]} 3. Nc3 {[%clk 0:02:55]}  d5 {[%clk 0:03:01]} 4. Nf3 {[%clk 0:02:54]}  Bg7 {[%clk 0:03:01]} 5. e3 {[%clk 0:02:53]}  c6 {[%clk 0:03:00]} 6. Be2 {[%clk 0:02:54]}  O-O {[%clk 0:03:00]} 7. O-O {[%clk 0:02:54]}  Bf5 {[%clk 0:03:00]} 8. Qb3 {[%clk 0:02:53]}  Qb6 {[%clk 0:02:51]} 9. Qxb6 {[%clk 0:02:46]}  axb6 {[%clk 0:02:52]} 10. cxd5 {[%clk 0:02:46]}  cxd5 {[%clk 0:02:51]} 11. Ne5 {[%clk 0:02:40]}  Nc6 {[%clk 0:02:48]} 12. Bf3 {[%clk 0:02:35]}  Rfd8 {[%clk 0:02:20]} 13. g4 {[%clk 0:02:28]}  Be6 {[%clk 0:02:09]} 14. g5 {[%clk 0:02:26]}  Nxe5 {[%clk 0:02:05]} 15. gxf6 {[%clk 0:02:05]}  Nxf3+ {[%clk 0:02:04]} 16. Kg2 {[%clk 0:02:06]}  Nh4+ {[%clk 0:02:04]} 17. Kg3 {[%clk 0:02:03]}  Nf5+ {[%clk 0:02:04]} 18. Kf4 {[%clk 0:02:02]}  Bxf6 {[%clk 0:02:05]} 19. Nb5 {[%clk 0:01:50]}  Ra5 {[%clk 0:01:58]} 20. Nc3 {[%clk 0:01:35]}  b5 {[%clk 0:01:52]} 21. Bd2 {[%clk 0:01:35]}  Rda8 {[%clk 0:01:50]} 22. a3 {[%clk 0:01:12]}  Nd6 {[%clk 0:01:47]} 23. Ne2 {[%clk 0:00:50]}  R5a6 {[%clk 0:01:46]} 24. Bc3 {[%clk 0:00:44]}  Bf5 {[%clk 0:01:39]} 25. Ng3 {[%clk 0:00:13]}  Ne4 {[%clk 0:01:31]} 26. Nxf5 {[%clk 0:00:11]}  gxf5 {[%clk 0:01:31]} 27. Kxf5 {[%clk 0:00:12]}  Nxc3 {[%clk 0:01:29]} 28. bxc3 {[%clk 0:00:11]}  Rxa3 {[%clk 0:01:30]} 29. Rab1 {[%clk 0:00:10]}  R8a5 {[%clk 0:01:27]} 30. Rb4 {[%clk 0:00:09]}  Rxc3 {[%clk 0:01:27]} 31. Rfb1 {[%clk 0:00:08]}  Kg7 {[%clk 0:01:26]} 32. Rxb5 {[%clk 0:00:04]}  e6+ {[%clk 0:01:25]} 33. Kf4 {[%clk 0:00:04]}  Rxb5 {[%clk 0:01:25]} 34. Rxb5 {[%clk 0:00:05]}  Rc2 {[%clk 0:01:25]} 35. Kf3 {[%clk 0:00:05]}  Rc7 {[%clk 0:01:25]} 36. Kg4 {[%clk 0:00:05]}  Kg6 {[%clk 0:01:24]} 37. f3 {[%clk 0:00:05]}  h5+ {[%clk 0:01:24]} 38. Kg3 {[%clk 0:00:06]}  Rc3 {[%clk 0:01:21]} 39. Kf4 {[%clk 0:00:06]}  Bg5+ {[%clk 0:01:20]} 40. Ke5 {[%clk 0:00:06]}  Rxe3+ {[%clk 0:01:20]} 41. Kd6 {[%clk 0:00:06]}  Rxf3 {[%clk 0:01:20]} 42. Rxb7 {[%clk 0:00:06]}  Bf4+ {[%clk 0:01:19]} 43. Kc5 {[%clk 0:00:05]}  Bxh2 {[%clk 0:01:19]} 44. Rb2 {[%clk 0:00:05]}  Bg3 {[%clk 0:01:19]} 45. Rg2 {[%clk 0:00:02]}  h4 {[%clk 0:01:19]} 0-1

[Event "November 21 Late 2023"]
[Site "https://www.chess.com"]
[Date "2023.11.21"]
[Round "11"]
[White "Pourkashiyan, Atousa"]
[Black "Bugayev, Vladimir"]
[Result "0-1"]
[Board "68"]
[TimeControl "180+1"]
[WhiteFideId "12502014"]
[BlackFideId "30901480"]
[WhiteElo "2221"]
[BlackElo "2379"]
[WhiteTeam "USA"]
[BlackTeam "USA"]
[WhiteClock "0:00:01"]
[BlackClock "0:00:07"]

1. e4 {[%clk 0:02:56]}  c6 {[%clk 0:02:59]} 2. d4 {[%clk 0:02:56]}  d5 {[%clk 0:03:00]} 3. exd5 {[%clk 0:02:56]}  cxd5 {[%clk 0:03:01]} 4. Bd3 {[%clk 0:02:56]}  Nc6 {[%clk 0:03:01]} 5. c3 {[%clk 0:02:56]}  Nf6 {[%clk 0:03:01]} 6. Ne2 {[%clk 0:02:57]}  Bg4 {[%clk 0:02:59]} 7. Bf4 {[%clk 0:02:56]}  e6 {[%clk 0:02:59]} 8. f3 {[%clk 0:02:57]}  Bh5 {[%clk 0:02:58]} 9. O-O {[%clk 0:02:57]}  Bd6 {[%clk 0:02:57]} 10. Nd2 {[%clk 0:02:57]}  Bg6 {[%clk 0:02:55]} 11. Nb3 {[%clk 0:02:57]}  Bxd3 {[%clk 0:02:49]} 12. Qxd3 {[%clk 0:02:57]}  Bxf4 {[%clk 0:02:43]} 13. Nxf4 {[%clk 0:02:57]}  Qd6 {[%clk 0:02:43]} 14. Qe3 {[%clk 0:02:53]}  O-O {[%clk 0:02:41]} 15. Nd3 {[%clk 0:02:53]}  Nd7 {[%clk 0:02:40]} 16. Rae1 {[%clk 0:02:50]}  b6 {[%clk 0:02:36]} 17. f4 {[%clk 0:02:44]}  Rae8 {[%clk 0:02:23]} 18. Qh3 {[%clk 0:02:32]}  Nf6 {[%clk 0:02:17]} 19. Nd2 {[%clk 0:02:30]}  g6 {[%clk 0:01:58]} 20. Ne5 {[%clk 0:02:27]}  Qc7 {[%clk 0:01:55]} 21. Qh4 {[%clk 0:02:23]}  Kg7 {[%clk 0:01:51]} 22. Rf3 {[%clk 0:02:20]}  Ne7 {[%clk 0:01:46]} 23. g4 {[%clk 0:02:18]}  h5 {[%clk 0:01:44]} 24. h3 {[%clk 0:01:34]}  Rh8 {[%clk 0:01:43]} 25. g5 {[%clk 0:01:22]}  Nd7 {[%clk 0:01:34]} 26. Qf2 {[%clk 0:01:20]}  Nf5 {[%clk 0:01:33]} 27. Nf1 {[%clk 0:01:19]}  Nxe5 {[%clk 0:01:16]} 28. fxe5 {[%clk 0:01:19]}  b5 {[%clk 0:01:15]} 29. Ne3 {[%clk 0:01:16]}  Rb8 {[%clk 0:01:13]} 30. a3 {[%clk 0:01:15]}  a5 {[%clk 0:01:13]} 31. Nc2 {[%clk 0:01:03]}  h4 {[%clk 0:01:05]} 32. Kh2 {[%clk 0:00:56]}  Rh5 {[%clk 0:01:04]} 33. Rg1 {[%clk 0:00:56]}  Qe7 {[%clk 0:01:04]} 34. Qd2 {[%clk 0:00:51]}  Ng3 {[%clk 0:00:54]} 35. Rfxg3 {[%clk 0:00:49]}  hxg3+ {[%clk 0:00:54]} 36. Rxg3 {[%clk 0:00:50]}  Rbh8 {[%clk 0:00:53]} 37. Ne1 {[%clk 0:00:47]}  b4 {[%clk 0:00:51]} 38. cxb4 {[%clk 0:00:42]}  axb4 {[%clk 0:00:51]} 39. a4 {[%clk 0:00:43]}  b3 {[%clk 0:00:40]} 40. Nd3 {[%clk 0:00:40]}  Qa7 {[%clk 0:00:40]} 41. Nc5 {[%clk 0:00:40]}  Qb6 {[%clk 0:00:38]} 42. Rxb3 {[%clk 0:00:38]}  Qxb3 {[%clk 0:00:31]} 43. Nxb3 {[%clk 0:00:38]}  Rxh3+ {[%clk 0:00:32]} 44. Kg1 {[%clk 0:00:37]}  Rh1+ {[%clk 0:00:32]} 45. Kf2 {[%clk 0:00:37]}  R8h2+ {[%clk 0:00:33]} 46. Ke3 {[%clk 0:00:36]}  Rxd2 {[%clk 0:00:32]} 47. Kxd2 {[%clk 0:00:35]}  Rh2+ {[%clk 0:00:20]} 48. Kc3 {[%clk 0:00:35]}  Rg2 {[%clk 0:00:17]} 49. a5 {[%clk 0:00:34]}  Rxg5 {[%clk 0:00:17]} 50. a6 {[%clk 0:00:35]}  Rh5 {[%clk 0:00:18]} 51. Nd2 {[%clk 0:00:29]}  Rh8 {[%clk 0:00:18]} 52. b4 {[%clk 0:00:29]}  Rb8 {[%clk 0:00:17]} 53. Kb3 {[%clk 0:00:20]}  Rb6 {[%clk 0:00:16]} 54. b5 {[%clk 0:00:17]}  Rxb5+ {[%clk 0:00:15]} 55. Ka4 {[%clk 0:00:18]}  Rb8 {[%clk 0:00:16]} 56. Ka5 {[%clk 0:00:19]}  g5 {[%clk 0:00:15]} 57. a7 {[%clk 0:00:17]}  Rb2 {[%clk 0:00:12]} 58. Nf1 {[%clk 0:00:13]}  Ra2+ {[%clk 0:00:12]} 59. Kb6 {[%clk 0:00:13]}  Kg6 {[%clk 0:00:12]} 60. Kb7 {[%clk 0:00:13]}  Kf5 {[%clk 0:00:12]} 61. a8=Q {[%clk 0:00:13]}  Rxa8 {[%clk 0:00:11]} 62. Kxa8 {[%clk 0:00:14]}  Ke4 {[%clk 0:00:11]} 63. Kb7 {[%clk 0:00:09]}  Kxd4 {[%clk 0:00:11]} 64. Kc6 {[%clk 0:00:09]}  Kxe5 {[%clk 0:00:12]} 65. Kc5 {[%clk 0:00:10]}  f5 {[%clk 0:00:12]} 66. Kb4 {[%clk 0:00:10]}  Kd4 {[%clk 0:00:12]} 67. Kb3 {[%clk 0:00:09]}  Kd3 {[%clk 0:00:12]} 68. Kb2 {[%clk 0:00:09]}  f4 {[%clk 0:00:09]} 69. Kc1 {[%clk 0:00:09]}  g4 {[%clk 0:00:08]} 70. Kd1 {[%clk 0:00:08]}  g3 {[%clk 0:00:09]} 71. Nd2 {[%clk 0:00:06]}  Ke3 {[%clk 0:00:07]} 72. Nf1+ {[%clk 0:00:01]}  Kf2 {[%clk 0:00:07]} 0-1

[Event "November 21 Late 2023"]
[Site "https://www.chess.com"]
[Date "2023.11.21"]
[Round "11"]
[White "Musalov, Ruslan"]
[Black "Romero Ruscalleda, Josep"]
[Result "1-0"]
[Board "69"]
[TimeControl "180+1"]
[WhiteFideId "4141490"]
[BlackFideId "2231859"]
[WhiteElo "2268"]
[BlackElo "2183"]
[WhiteTeam "RUS"]
[BlackTeam "ESP"]
[WhiteClock "0:00:24"]
[BlackClock "0:00:00"]

1. e4 {[%clk 0:02:56]}  g6 {[%clk 0:03:00]} 2. d4 {[%clk 0:02:57]}  Bg7 {[%clk 0:03:01]} 3. Nc3 {[%clk 0:02:56]}  d6 {[%clk 0:03:01]} 4. Bg5 {[%clk 0:02:56]}  Nd7 {[%clk 0:03:00]} 5. Nf3 {[%clk 0:02:56]}  c5 {[%clk 0:03:00]} 6. dxc5 {[%clk 0:02:53]}  Nxc5 {[%clk 0:03:00]} 7. Bd3 {[%clk 0:02:53]}  Qa5 {[%clk 0:02:55]} 8. Qd2 {[%clk 0:02:53]}  Nf6 {[%clk 0:02:45]} 9. O-O {[%clk 0:02:53]}  Nxd3 {[%clk 0:02:44]} 10. cxd3 {[%clk 0:02:52]}  O-O {[%clk 0:02:44]} 11. Nd5 {[%clk 0:02:52]}  Qd8 {[%clk 0:02:39]} 12. Nxf6+ {[%clk 0:02:46]}  exf6 {[%clk 0:02:39]} 13. Bh4 {[%clk 0:02:44]}  Qb6 {[%clk 0:02:31]} 14. d4 {[%clk 0:02:41]}  d5 {[%clk 0:02:26]} 15. e5 {[%clk 0:02:33]}  fxe5 {[%clk 0:02:24]} 16. Nxe5 {[%clk 0:02:30]}  Be6 {[%clk 0:02:19]} 17. b3 {[%clk 0:02:22]}  Rac8 {[%clk 0:02:13]} 18. Rac1 {[%clk 0:02:22]}  f6 {[%clk 0:02:00]} 19. Nd3 {[%clk 0:02:17]}  Qxd4 {[%clk 0:01:50]} 20. Bg3 {[%clk 0:02:13]}  Bf5 {[%clk 0:01:47]} 21. Rcd1 {[%clk 0:02:12]}  Rfd8 {[%clk 0:01:31]} 22. Rfe1 {[%clk 0:02:03]}  Rd7 {[%clk 0:01:18]} 23. h3 {[%clk 0:01:57]}  Rc3 {[%clk 0:01:05]} 24. Nf4 {[%clk 0:01:52]}  Qxd2 {[%clk 0:01:01]} 25. Rxd2 {[%clk 0:01:53]}  d4 {[%clk 0:00:59]} 26. Red1 {[%clk 0:01:41]}  Rc2 {[%clk 0:00:36]} 27. Rxd4 {[%clk 0:01:35]}  Rxd4 {[%clk 0:00:35]} 28. Rxd4 {[%clk 0:01:36]}  Rxa2 {[%clk 0:00:34]} 29. Rc4 {[%clk 0:01:19]}  h5 {[%clk 0:00:31]} 30. Rc7 {[%clk 0:01:08]}  h4 {[%clk 0:00:29]} 31. Bxh4 {[%clk 0:01:05]}  g5 {[%clk 0:00:29]} 32. Nh5 {[%clk 0:01:05]}  Bf8 {[%clk 0:00:19]} 33. Nxf6+ {[%clk 0:01:04]}  Kh8 {[%clk 0:00:19]} 34. Bg3 {[%clk 0:01:00]}  b5 {[%clk 0:00:18]} 35. Be5 {[%clk 0:00:58]}  Bg7 {[%clk 0:00:13]} 36. g4 {[%clk 0:00:54]}  Bg6 {[%clk 0:00:12]} 37. Rc8+ {[%clk 0:00:54]}  Bf8 {[%clk 0:00:10]} 38. Rxf8+ {[%clk 0:00:52]}  Kg7 {[%clk 0:00:11]} 39. Rb8 {[%clk 0:00:49]}  Re2 {[%clk 0:00:10]} 40. Rxb5 {[%clk 0:00:48]}  Kf7 {[%clk 0:00:08]} 41. Bd4 {[%clk 0:00:44]}  Ke6 {[%clk 0:00:06]} 42. Nd5 {[%clk 0:00:37]}  Re1+ {[%clk 0:00:04]} 43. Kg2 {[%clk 0:00:26]}  Be4+ {[%clk 0:00:04]} 44. f3 {[%clk 0:00:26]}  Bxd5 {[%clk 0:00:04]} 45. Bxa7 {[%clk 0:00:26]}  Re2+ {[%clk 0:00:03]} 46. Kg3 {[%clk 0:00:24]}  Rb2 {[%clk 0:00:02]} 47. h4 {[%clk 0:00:24]}  gxh4+ {[%clk 0:00:01]} 48. Kxh4 {[%clk 0:00:24]}  Rxb3 {[%clk 0:00:01]} 49. Rxb3 {[%clk 0:00:24]}  Bxb3 {[%clk 0:00:01]} 50. f4 {[%clk 0:00:24]}  Bd1 {[%clk 0:00:01]} 51. Kg5 {[%clk 0:00:24]}  Kf7 {[%clk 0:00:01]} 52. f5 {[%clk 0:00:24]}  Be2 {[%clk 0:00:01]} 53. Bd4 {[%clk 0:00:24]}  Bf3 {[%clk 0:00:02]} 54. Kf4 {[%clk 0:00:24]}  Be2 {[%clk 0:00:02]} 55. g5 {[%clk 0:00:24]}  Bd3 {[%clk 0:00:02]} 56. g6+ {[%clk 0:00:24]}  Ke7 {[%clk 0:00:02]} 57. Kg5 {[%clk 0:00:25]}  Be4 {[%clk 0:00:01]} 58. f6+ {[%clk 0:00:25]}  Ke6 {[%clk 0:00:01]} 59. f7 {[%clk 0:00:24]}  Ke7 {[%clk 0:00:00]} 60. Bc5+ {[%clk 0:00:24]} 1-0

[Event "November 21 Late 2023"]
[Site "https://www.chess.com"]
[Date "2023.11.21"]
[Round "11"]
[White "Butti, Enrique"]
[Black "YouShallNotPass001"]
[Result "0-1"]
[Board "71"]
[TimeControl "180+1"]
[WhiteFideId "3700470"]
[WhiteElo "2080"]
[BlackElo "2444"]
[WhiteTeam "PAR"]
[WhiteClock "0:02:02"]
[BlackClock "0:01:15"]

1. Nf3 {[%clk 0:03:00]}  Nf6 {[%clk 0:03:00]} 2. c4 {[%clk 0:02:59]}  e6 {[%clk 0:03:00]} 3. d4 {[%clk 0:02:58]}  d5 {[%clk 0:03:01]} 4. e3 {[%clk 0:02:58]}  Be7 {[%clk 0:02:58]} 5. Nc3 {[%clk 0:02:57]}  O-O {[%clk 0:02:59]} 6. b3 {[%clk 0:02:56]}  c5 {[%clk 0:02:59]} 7. Bb2 {[%clk 0:02:56]}  Nc6 {[%clk 0:02:59]} 8. Bd3 {[%clk 0:02:55]}  cxd4 {[%clk 0:02:59]} 9. exd4 {[%clk 0:02:55]}  b6 {[%clk 0:02:59]} 10. O-O {[%clk 0:02:54]}  Bb7 {[%clk 0:02:59]} 11. Qe2 {[%clk 0:02:54]}  Rc8 {[%clk 0:02:59]} 12. Rad1 {[%clk 0:02:53]}  Nb4 {[%clk 0:02:52]} 13. Bb1 {[%clk 0:02:52]}  Ba6 {[%clk 0:02:41]} 14. Nb5 {[%clk 0:02:43]}  Nc6 {[%clk 0:02:30]} 15. Ne5 {[%clk 0:02:37]}  Bxb5 {[%clk 0:02:23]} 16. cxb5 {[%clk 0:02:36]}  Nxe5 {[%clk 0:02:22]} 17. dxe5 {[%clk 0:02:36]}  Nd7 {[%clk 0:02:19]} 18. f4 {[%clk 0:02:34]}  g6 {[%clk 0:02:19]} 19. f5 {[%clk 0:02:28]}  Bc5+ {[%clk 0:02:03]} 20. Kh1 {[%clk 0:02:27]}  Qh4 {[%clk 0:02:03]} 21. fxe6 {[%clk 0:02:17]}  fxe6 {[%clk 0:02:04]} 22. Rf6 {[%clk 0:02:16]}  Nxf6 {[%clk 0:01:56]} 23. exf6 {[%clk 0:02:16]}  Rxf6 {[%clk 0:01:30]} 24. g3 {[%clk 0:02:15]}  Qg5 {[%clk 0:01:27]} 25. h4 {[%clk 0:02:15]}  Qxg3 {[%clk 0:01:19]} 26. Bxf6 {[%clk 0:02:13]}  Qh3+ {[%clk 0:01:19]} 27. Qh2 {[%clk 0:02:11]}  Qf3+ {[%clk 0:01:19]} 28. Qg2 {[%clk 0:02:08]}  Qxd1+ {[%clk 0:01:19]} 29. Kh2 {[%clk 0:02:08]}  Bd6+ {[%clk 0:01:16]} 30. Kh3 {[%clk 0:02:02]}  Qxb1 {[%clk 0:01:15]} 0-1

[Event "November 21 Late 2023"]
[Site "https://www.chess.com"]
[Date "2023.11.21"]
[Round "11"]
[White "Todorovic, Bojan"]
[Black "Rosen, Eric"]
[Result "0-1"]
[Board "73"]
[TimeControl "180+1"]
[WhiteFideId "917087"]
[BlackFideId "2032562"]
[WhiteElo "2266"]
[BlackElo "2346"]
[WhiteTeam "SRB"]
[BlackTeam "USA"]
[WhiteClock "0:00:01"]
[BlackClock "0:00:39"]

1. Nf3 {[%clk 0:02:57]}  d5 {[%clk 0:02:58]} 2. c4 {[%clk 0:02:56]}  e6 {[%clk 0:02:57]} 3. g3 {[%clk 0:02:54]}  Nf6 {[%clk 0:02:57]} 4. Bg2 {[%clk 0:02:53]}  dxc4 {[%clk 0:02:57]} 5. Qa4+ {[%clk 0:02:49]}  c6 {[%clk 0:02:56]} 6. Qxc4 {[%clk 0:02:49]}  b5 {[%clk 0:02:57]} 7. Qc2 {[%clk 0:02:48]}  Bb7 {[%clk 0:02:58]} 8. O-O {[%clk 0:02:47]}  Nbd7 {[%clk 0:02:58]} 9. Nc3 {[%clk 0:02:38]}  a6 {[%clk 0:02:59]} 10. b3 {[%clk 0:02:31]}  c5 {[%clk 0:02:59]} 11. Bb2 {[%clk 0:02:30]}  Be7 {[%clk 0:02:58]} 12. d3 {[%clk 0:02:22]}  O-O {[%clk 0:02:58]} 13. e4 {[%clk 0:02:11]}  Qb6 {[%clk 0:02:59]} 14. Rfe1 {[%clk 0:01:54]}  Rfd8 {[%clk 0:02:58]} 15. Rad1 {[%clk 0:01:49]}  Rac8 {[%clk 0:02:59]} 16. Qe2 {[%clk 0:01:42]}  Nb8 {[%clk 0:02:54]} 17. e5 {[%clk 0:01:25]}  Nd5 {[%clk 0:02:44]} 18. Ne4 {[%clk 0:01:25]}  Nc6 {[%clk 0:02:44]} 19. Nfg5 {[%clk 0:01:22]}  h6 {[%clk 0:02:38]} 20. Nxf7 {[%clk 0:00:48]}  Kxf7 {[%clk 0:02:32]} 21. Qh5+ {[%clk 0:00:44]}  Kg8 {[%clk 0:02:27]} 22. Qg6 {[%clk 0:00:43]}  Nd4 {[%clk 0:02:23]} 23. Bxd4 {[%clk 0:00:24]}  cxd4 {[%clk 0:02:23]} 24. Bh3 {[%clk 0:00:24]}  Rc6 {[%clk 0:02:16]} 25. Nd6 {[%clk 0:00:21]}  Rcxd6 {[%clk 0:00:47]} 26. exd6 {[%clk 0:00:20]}  Bg5 {[%clk 0:00:48]} 27. Bxe6+ {[%clk 0:00:17]}  Kh8 {[%clk 0:00:49]} 28. Bf5 {[%clk 0:00:15]}  Nf6 {[%clk 0:00:49]} 29. d7 {[%clk 0:00:12]}  Qc6 {[%clk 0:00:44]} 30. Re8+ {[%clk 0:00:06]}  Rxe8 {[%clk 0:00:45]} 31. dxe8=Q+ {[%clk 0:00:06]}  Qxe8 {[%clk 0:00:46]} 32. Qxe8+ {[%clk 0:00:04]}  Nxe8 {[%clk 0:00:46]} 33. f4 {[%clk 0:00:02]}  Bf6 {[%clk 0:00:42]} 34. Re1 {[%clk 0:00:03]}  Nd6 {[%clk 0:00:42]} 35. Re6 {[%clk 0:00:02]}  Nxf5 {[%clk 0:00:41]} 36. Rb6 {[%clk 0:00:02]}  Bc8 {[%clk 0:00:40]} 37. Rb8 {[%clk 0:00:01]}  Ne7 {[%clk 0:00:41]} 38. Ra8 {[%clk 0:00:01]}  Kg8 {[%clk 0:00:39]} 0-1

[Event "November 21 Late 2023"]
[Site "https://www.chess.com"]
[Date "2023.11.21"]
[Round "11"]
[White "Ferreira, Vitor Hugo Vieira"]
[Black "Figorito, Nick"]
[Result "1-0"]
[Board "74"]
[TimeControl "180+1"]
[WhiteFideId "2119765"]
[BlackFideId "30923689"]
[WhiteElo "2123"]
[BlackElo "2371"]
[WhiteTeam "BRA"]
[BlackTeam "USA"]
[WhiteClock "0:01:52"]
[BlackClock "0:01:37"]

1. d4 {[%clk 0:03:00]}  Nf6 {[%clk 0:03:00]} 2. c4 {[%clk 0:03:00]}  g6 {[%clk 0:03:00]} 3. Nc3 {[%clk 0:03:00]}  d5 {[%clk 0:03:01]} 4. Nf3 {[%clk 0:03:00]}  Bg7 {[%clk 0:03:01]} 5. Qb3 {[%clk 0:03:00]}  dxc4 {[%clk 0:03:01]} 6. Qxc4 {[%clk 0:03:00]}  O-O {[%clk 0:03:02]} 7. e4 {[%clk 0:03:00]}  a6 {[%clk 0:03:03]} 8. Be2 {[%clk 0:02:58]}  b5 {[%clk 0:03:03]} 9. Qb3 {[%clk 0:02:57]}  c5 {[%clk 0:03:03]} 10. dxc5 {[%clk 0:02:49]}  Bb7 {[%clk 0:03:02]} 11. e5 {[%clk 0:02:39]}  Nfd7 {[%clk 0:03:02]} 12. Be3 {[%clk 0:02:37]}  Nxe5 {[%clk 0:03:02]} 13. Rd1 {[%clk 0:02:35]}  Qc7 {[%clk 0:03:01]} 14. Nd5 {[%clk 0:02:30]}  Bxd5 {[%clk 0:02:58]} 15. Qxd5 {[%clk 0:02:29]}  Nbc6 {[%clk 0:02:57]} 16. O-O {[%clk 0:02:28]}  Rfd8 {[%clk 0:02:48]} 17. Qe4 {[%clk 0:02:28]}  Nxf3+ {[%clk 0:02:40]} 18. Bxf3 {[%clk 0:02:26]}  Ne5 {[%clk 0:02:12]} 19. Be2 {[%clk 0:02:02]}  Nc6 {[%clk 0:01:57]} 20. b4 {[%clk 0:01:59]}  Nd4 {[%clk 0:01:47]} 21. Bxd4 {[%clk 0:01:53]}  Bxd4 {[%clk 0:01:37]} 22. Rxd4 {[%clk 0:01:52]} 1-0

[Event "November 21 Late 2023"]
[Site "https://www.chess.com"]
[Date "2023.11.21"]
[Round "11"]
[White "Gerbelli Neto, Eduardo"]
[Black "Kochiev, Ivan"]
[Result "1-0"]
[Board "75"]
[TimeControl "180+1"]
[WhiteFideId "2103281"]
[BlackFideId "2917890"]
[WhiteElo "2178"]
[BlackElo "2285"]
[WhiteTeam "BRA"]
[BlackTeam "BUL"]
[WhiteClock "0:00:52"]
[BlackClock "0:00:15"]

1. e4 {[%clk 0:03:00]}  e5 {[%clk 0:02:59]} 2. Nf3 {[%clk 0:03:00]}  Nf6 {[%clk 0:03:00]} 3. Bc4 {[%clk 0:02:59]}  Nxe4 {[%clk 0:02:57]} 4. Nc3 {[%clk 0:02:59]}  Nf6 {[%clk 0:02:44]} 5. Nxe5 {[%clk 0:02:57]}  d5 {[%clk 0:02:44]} 6. Bb3 {[%clk 0:02:50]}  Bd6 {[%clk 0:02:39]} 7. d4 {[%clk 0:02:49]}  c6 {[%clk 0:02:26]} 8. Bg5 {[%clk 0:02:44]}  O-O {[%clk 0:02:16]} 9. O-O {[%clk 0:02:42]}  h6 {[%clk 0:01:49]} 10. Bh4 {[%clk 0:02:38]}  Be7 {[%clk 0:01:23]} 11. f4 {[%clk 0:02:30]}  Ne4 {[%clk 0:01:19]} 12. Bxe7 {[%clk 0:02:26]}  Qxe7 {[%clk 0:01:19]} 13. Nxe4 {[%clk 0:02:23]}  dxe4 {[%clk 0:01:19]} 14. Qh5 {[%clk 0:02:12]}  Qf6 {[%clk 0:01:02]} 15. Rae1 {[%clk 0:01:52]}  Bf5 {[%clk 0:00:47]} 16. g4 {[%clk 0:01:43]}  Bh7 {[%clk 0:00:46]} 17. g5 {[%clk 0:01:40]}  Qf5 {[%clk 0:00:46]} 18. Qh4 {[%clk 0:01:16]}  c5 {[%clk 0:00:45]} 19. c3 {[%clk 0:01:11]}  cxd4 {[%clk 0:00:42]} 20. cxd4 {[%clk 0:01:11]}  Nc6 {[%clk 0:00:43]} 21. gxh6 {[%clk 0:01:08]}  Nxd4 {[%clk 0:00:36]} 22. hxg7 {[%clk 0:01:06]}  Kxg7 {[%clk 0:00:36]} 23. Kh1 {[%clk 0:01:03]}  Nxb3 {[%clk 0:00:29]} 24. Rg1+ {[%clk 0:01:02]}  Kh8 {[%clk 0:00:28]} 25. axb3 {[%clk 0:01:00]}  Rg8 {[%clk 0:00:28]} 26. Rg5 {[%clk 0:00:52]}  Rxg5 {[%clk 0:00:19]} 27. Qxg5 {[%clk 0:00:53]}  f6 {[%clk 0:00:15]} 28. Nf7# {[%clk 0:00:52]} 1-0